Cogmind - Beta 17 @@@ ROGUE MODE // 2026.07.28 @ 21:46:57 Player: kite Result: Self-destructed Performance ------------- Evolutions (1) 500 Regions Visited (5) 1000 Robots Destroyed (43) 215 Value Destroyed (941) 941 Prototype IDs (23) 460 Alien Tech Used (0) 0 Bonus (300) 300 TOTAL SCORE: 3416 Bonus ------- Aligned with FarCom 300 Cogmind --------- Core Integrity 320/400 Matter 261/300 Energy 250/250 System Corruption 0% Temperature Cool (0) Movement Treading (160) Location -9/Exiles Parts ------- > --- POWER (1) -------- Ion Engine > --- PROPULSION (4) --- Light Treads Light Treads Light Treads Aluminum Leg > --- UTILITY (2) ------ Large Storage Unit Hardened Light Armor Plating > --- WEAPON (2) ------- Assault Rifle Heavy Assault Rifle > --- INVENTORY (15) --- Wheel Light Armor Plating Hardened Light Armor Plating Hardened Light Armor Plating Chronowheel Light Assault Rifle AWS/Autocannon Grenade Launcher Rocket Launcher Rocket Launcher Plasma Cutter Mace Mace Peak State ------------ > --- POWER ------------ Ion Engine > --- PROPULSION ------- Light Treads Light Treads Light Treads Aluminum Leg > --- UTILITY ---------- Large Storage Unit Hardened Light Armor Plating > --- WEAPON ----------- Assault Rifle Heavy Assault Rifle > --- INVENTORY -------- Wheel Light Armor Plating Hardened Light Armor Plating Hardened Light Armor Plating Chronowheel Light Assault Rifle AWS/Autocannon Grenade Launcher Rocket Launcher Rocket Launcher Plasma Cutter Mace Mace [Rating: 17] Favorites ----------- Power Ion Engine Engine Ion Engine Propulsion Light Treads Treads Light Treads Leg Aluminum Leg Wheel Wheel Utility Large Storage Unit Storage Large Storage Unit Protection Hardened Light Armor Plating Weapon Assault Rifle Ballistic Gun Assault Rifle Launcher Rocket Launcher Impact Weapon Mace Build | -11 -10 -10 -9 -9 -9 ------- Run | Yrd Mat Min Mat Min Exi Slots Evolved 2 | . . . 2 . . Power . | . . . . . . Propulsion 2 | . . . 2 . . Utility . | . . . . . . Weapon . | . . . . . . Parts Attached 22 | 6 1 1 8 6 . Power 2 | 1 . . . 1 . Engine 2 | 1 . . . 1 . Core . | . . . . . . Reactor . | . . . . . . Propulsion 8 | 2 . . 3 3 . Treads 5 | 2 . . 3 . . Leg 2 | . . . . 2 . Wheel 1 | . . . . 1 . Hover . | . . . . . . Flight . | . . . . . . Utility 5 | 1 1 1 1 1 . Device . | . . . . . . Storage 2 | 1 . 1 . . . Processor . | . . . . . . Hackware . | . . . . . . Protection 3 | . 1 . 1 1 . Artifact . | . . . . . . Weapon 7 | 2 . . 4 1 . Energy Gun . | . . . . . . Energy Cannon . | . . . . . . Ballistic Gun 4 | 2 . . 2 . . Ballistic Cannon . | . . . . . . Launcher 2 | . . . 1 1 . Special Weapon . | . . . . . . Impact Weapon 1 | . . . 1 . . Slashing Weapon . | . . . . . . Piercing Weapon . | . . . . . . Special Melee Weapon . | . . . . . . Unidentified Prototypes . | . . . . . . Parts Lost 5 | . . . 1 4 . Power 1 | . . . . 1 . Propulsion 2 | . . . . 2 . Utility 1 | . . . . 1 . Weapon 1 | . . . 1 . . Highest Loss Streak 3 | . . . 1 3 . To Critical Strikes . | . . . . . . Average Backups 10 | 1 3 5 12 13 14 Power . | . 1 1 1 . . Propulsion . | . . . . 1 1 Utility 4 | . . 1 5 5 4 Weapon 4 | . 1 2 5 6 6 Tool/Special . | . . . . . . Unused Backups 10 | . . . 1 . 9 Power . | . . . . . . Propulsion . | . . . . . . Utility 5 | . . . . . 5 Weapon 4 | . . . 1 . 3 Tool/Special 1 | . . . . . 1 Average Slot Usage (%) 94 | . 89 100 91 98 100 Engine 11 | . 14 14 11 10 11 Treads 31 | . 28 28 35 33 22 Leg 4 | . . . . 6 21 Storage 11 | . 14 14 11 11 11 Protection 10 | . 3 14 11 11 11 Ballistic Gun 22 | . 28 28 20 20 22 Peak Build Rating 17 | 6 7 7 13 13 17 Average Rating 10 | 4 6 7 10 12 13 On Entrance 7 | . 6 7 7 13 13 Avg Prop Armor Cover (%) 8 | . . . . 7 8 Naked Turns . | . . . . . . Heaviest Build 36 | 13 14 29 36 36 35 Greatest Support 80 | 40 40 40 80 80 60 Greatest Overweight (x) . | . . . . . . Average Overweight (x) . | . . . . . . Largest Inventory Capacity 15 | 8 8 15 15 15 15 Average Capacity 13 | 6 8 14 15 15 15 Most Carried 15 | 2 4 6 15 15 15 Average Carried 10 | 1 3 5 12 13 14 Final Capacity 15 | 8 8 15 15 15 15 Final Carried 15 | 2 4 6 15 14 15 Class Distribution -------------------- 67% | Mutant 32% | Scavenger-Mutant Dominant Class ---------------- Mutant | -10/Materials Mutant | -10/Mines Mutant | -9/Materials Scavenger-Mutant | -9/Mines Scavenger-Mutant | -9/Exiles Resources | -11 -10 -10 -9 -9 -9 ----------- Run | Yrd Mat Min Mat Min Exi Matter Collected 1006 | 187 121 . 313 385 . Remotely . | . . . . . . Salvage Created 1227 | . 207 . 655 365 . Parts 94 | . 14 . 62 18 . Haulers Intercepted 2 | . . . 2 . . Recyclers Shooed 2 | . . . 2 . . Parts Field Recycled . | . . . . . . Retrieved Matter . | . . . . . . Parts Self-Destructed . | . . . . . . Prevented . | . . . . . . Parts Restored . | . . . . . . Kills | -11 -10 -10 -9 -9 -9 ------- Run | Yrd Mat Min Mat Min Exi Combat Hostiles Destroyed 34 | . 4 . 20 10 . Guns 26 | . 4 . 15 7 . AOE 8 | . . . 5 3 . Classes Destroyed 9 | . 2 . 5 2 . Worker 4 | . . . 2 2 . Builder 2 | . . . 2 . . Hauler 2 | . . . 2 . . Recycler 1 | . 1 . . . . Swarmer 15 | . . . 12 3 . Grunt 13 | . 4 . 4 5 . Brawler 1 | . . . . 1 . Duelist 1 | . . . . 1 . Sentry 4 | . . . 4 . . Best Kill Streak 7 | . 5 . 7 4 . Combat Bots Only 5 | . 2 . 5 3 . Max Kills in Single Turn 4 | . 1 . 4 1 . Gunslinging 1 | . . . 1 . . Exploded 2 | . . . 2 1 . Melee . | . . . . . . Uniques/NPCs Destroyed . | . . . . . . Combat | -11 -10 -10 -9 -9 -9 -------- Run | Yrd Mat Min Mat Min Exi Hostile Shots Fired 129 | . 15 . 68 46 . Missed 30 | . 1 . 16 13 . Hits 99 | . 14 . 52 33 . Melee 5 | . . . . 5 . Projectile 94 | . 14 . 52 28 . Damage Taken 1333 | . 202 . 602 529 . Core 140 | . 60 . 49 31 . Absorbed by Shields . | . . . . . . Core Remaining (%) 88 | 100 . 76 . . . Volleys Fired 94 | . 12 . 49 33 . Largest 2 | . 2 . 2 2 . Hottest 43 | . 40 . 40 43 . Shots Fired 174 | . 24 . 92 58 . Gun 163 | . 24 . 88 51 . Cannon . | . . . . . . Launcher 11 | . . . 4 7 . Special . | . . . . . . Kinetic 163 | . 24 . 88 51 . Thermal . | . . . . . . Explosive 11 | . . . 4 7 . Electromagnetic . | . . . . . . Robot Hit Streak 16 | . 9 . 16 5 . Robot Miss Streak 6 | . 3 . 3 6 . Penetration Max . | . . . . . . Secondary Targets 2 | . . . 1 1 . Max Gunslinging Chain 1 | . . . 1 1 . Shots Hit Robots 113 | . 17 . 65 31 . Core Hits 62 | . 8 . 36 18 . Critical Kills 1 | . 1 . . . . Critical Parts Destroyed 2 | . . . 1 1 . Critical Strikes 3 | . 1 . 1 1 . Destroy 3 | . 1 . 1 1 . Melee Attacks 5 | . . . 5 . . Impact 5 | . . . 5 . . Slashing . | . . . . . . Piercing . | . . . . . . Sneak Attacks 1 | . . . 1 . . Combat Hostiles . | . . . . . . Follow-up Attacks . | . . . . . . Damage Inflicted 1960 | . 180 . 1101 679 . Guns 1232 | . 180 . 609 443 . Cannons . | . . . . . . Explosions 673 | . . . 437 236 . Melee 55 | . . . 55 . . Ramming . | . . . . . . Kinetic 1232 | . 180 . 609 443 . Thermal . | . . . . . . Explosive 673 | . . . 437 236 . Electromagnetic . | . . . . . . Impact 55 | . . . 55 . . Slashing . | . . . . . . Piercing . | . . . . . . Highest Corruption . | . . . . . . Average Corruption . | . . . . . . Corruption Purged . | . . . . . . Corruption Blocked . | . . . . . . Overload Shots . | . . . . . . Overflow Damage 59 | . . . 18 41 . Projectiles . | . . . . . . Explosions 59 | . . . 18 41 . Melee . | . . . . . . Knockbacks . | . . . . . . Impact . | . . . . . . Kinetic . | . . . . . . Secondary . | . . . . . . Self-Inflicted Damage 92 | . . . 47 45 . Shots 2 | . . . 1 1 . Rammed . | . . . . . . Targets Rammed 1 | . 1 . . . . Kicked . | . . . . . . Crushed 1 | . 1 . . . . Highest Temperature 20 | . 18 . 20 10 . Average Temperature 5 | . 8 . 5 4 . Received Heat Transfer 384 | . 111 . 126 147 . Siege Activations . | . . . . . . Martial Activations . | . . . . . . Shielding Activations . | . . . . . . Robots Disrupted . | . . . . . . Combat Hostiles . | . . . . . . Robots Corrupted . | . . . . . . Combat Hostiles . | . . . . . . Parts Fried . | . . . . . . Impact Corruptions . | . . . . . . Robots Melted . | . . . . . . Combat Hostiles . | . . . . . . Parts Melted . | . . . . . . Heat Transferred . | . . . . . . Parts Sabotaged . | . . . . . . Parts Stolen . | . . . . . . Parts Stripped . | . . . . . . Power Chain Reactions . | . . . . . . Alert | -11 -10 -10 -9 -9 -9 ------- Run | Yrd Mat Min Mat Min Exi Maximum Alert Level 1 | . . . 1 1 . Low Security (%) 69 | 100 100 100 65 32 . Level 1 30 | . . . 34 67 . Level 2 . | . . . . . . Level 3 . | . . . . . . Level 4 . | . . . . . . Level 5 . | . . . . . . High Security . | . . . . . . Max Security . | . . . . . . Peak Influence 383 | . 85 13 383 246 . Initial 112 | . . 13 . 112 . Average 118 | . 27 1 160 195 . Influence Increases 1079 | . 112 . 648 319 . Destroy 0b10 Robot/C 680 | . 80 . 400 200 . Destroy 0b10 Robot/NC 45 | . 5 . 30 10 . Destroy Leader 154 | . 20 . 94 40 . Allied During Kill 2 | . . . 2 . . Successful Hack 28 | . 7 . 21 . . Disable Machine 15 | . . . 15 . . Destroy Structure 95 | . . . 41 54 . Lose Combat Pursuer 60 | . . . 45 15 . Influence Decreases 1079 | . 77 35 358 416 193 Entered New Map 393 | . . 22 . 178 193 Time Decay 636 | . 77 13 348 198 . Lost Part 50 | . . . 10 40 . Squads Dispatched 2 | . 1 . 1 . . Investigation 1 | . 1 . . . . Extermination . | . . . . . . Reinforcement 1 | . . . 1 . . Assault . | . . . . . . Garrison . | . . . . . . Intercept . | . . . . . . Searches Triggered . | . . . . . . Construction Impeded . | . . . . . . Haulers Reinforced . | . . . . . . Active Scanning Responses . | . . . . . . Cargo Convoy Interrupts . | . . . . . . Stealth | -11 -10 -10 -9 -9 -9 --------- Run | Yrd Mat Min Mat Min Exi Distress Signals 1 | . 1 . . . . Communications Jammed . | . . . . . . Distress Signals . | . . . . . . Times Spotted 41 | . 6 . 23 12 . Peak Tracking Total 5 | . 4 . 5 4 . Tactical Retreats 4 | . . . 3 1 . Traps | -11 -10 -10 -9 -9 -9 ------- Run | Yrd Mat Min Mat Min Exi Traps Triggered 1 | . 1 . . . . Indirectly . | . . . . . . Trap Hack Attempts . | . . . . . . Triggered . | . . . . . . Disarmed . | . . . . . . Reprogrammed . | . . . . . . Reused . | . . . . . . Traps Extracted . | . . . . . . Installed . | . . . . . . Triggered . | . . . . . . Machines | -11 -10 -10 -9 -9 -9 ---------- Run | Yrd Mat Min Mat Min Exi Machines Disabled 1 | . . . 1 . . Max in Single Turn 1 | . . . 1 . . Machines Repaired . | . . . . . . Machines Dismantled . | . . . . . . Machines Sabotaged . | . . . . . . Overloaded Fab Kills . | . . . . . . Hacking | -11 -10 -10 -9 -9 -9 --------- Run | Yrd Mat Min Mat Min Exi Machines Accessed 6 | . 1 . 3 . 2 Terminals 4 | . 1 . 3 . . Fabricators . | . . . . . . Repair Stations . | . . . . . . Recycling Units . | . . . . . . Scanalyzers . | . . . . . . Garrison Access . | . . . . . . Total Hacks 16 | . 4 . 7 . 5 Successful 10 | . 1 . 4 . 5 Failed 6 | . 3 . 3 . . Catastrophic 2 | . 1 . 1 . . Database Lockouts . | . . . . . . Manual 12 | . 4 . 7 . 1 Terminals 11 | . 4 . 7 . . Fabricators . | . . . . . . Repair Stations . | . . . . . . Recycling Units . | . . . . . . Scanalyzers . | . . . . . . Garrison Access . | . . . . . . Terminal Hacks 10 | . 1 . 4 . 5 Record 4 | . . . . . 4 Part Schematic 1 | . 1 . . . . Branch Access Points 1 | . . . 1 . . Hauler Manifests 1 | . . . 1 . . Registered Components 1 | . . . 1 . . Zone Layout 1 | . . . 1 . . Proto ID Catalog 1 | . . . . . 1 Fabricator Hacks . | . . . . . . Repair Station Hacks . | . . . . . . Recycling Unit Hacks . | . . . . . . Scanalyzer . | . . . . . . Garrison Access Hacks . | . . . . . . Unauthorized Hacks . | . . . . . . Terminals . | . . . . . . Fabricators . | . . . . . . Repair Stations . | . . . . . . Recycling Units . | . . . . . . Scanalyzers . | . . . . . . Garrison Access . | . . . . . . Data Cores Recovered . | . . . . . . Used . | . . . . . . Hacking Detections 2 | . 1 . 1 . . Full Trace Events 1 | . 1 . . . . Feedback Events . | . . . . . . Feedback Blocked . | . . . . . . Robot Schematics Acquired . | . . . . . . Robots Built . | . . . . . . Authchips . | . . . . . . Time . | . . . . . . Total Robot Build Rating . | . . . . . . Part Schematics Acquired 1 | . 1 . . . . Parts Built . | . . . . . . Authchips . | . . . . . . Time . | . . . . . . Total Part Build Rating . | . . . . . . Part Studies Acquired . | . . . . . . Parts Repaired . | . . . . . . Time . | . . . . . . Parts Recycled . | . . . . . . Recycled Matter . | . . . . . . Retrieved Matter . | . . . . . . Retrieved Components . | . . . . . . Parts Scanalyzed . | . . . . . . Part Schematics Acquired . | . . . . . . Parts Damaged . | . . . . . . Bothacking | -11 -10 -10 -9 -9 -9 ------------ Run | Yrd Mat Min Mat Min Exi Used RIF Installer . | . . . . . . Robots Hacked . | . . . . . . Non-combat . | . . . . . . Combat . | . . . . . . Robot Hacks Applied . | . . . . . . Relay Couplers Released . | . . . . . . Fabnet Peak Effective % . | . . . . . . Robots Rewired . | . . . . . . Allies Hacked . | . . . . . . Hacks Repelled . | . . . . . . Allies | -11 -10 -10 -9 -9 -9 -------- Run | Yrd Mat Min Mat Min Exi Total Allies 1 | . . 1 . . . Largest Group 1 | . . 1 1 . . Highest-Rated Group 31 | . . 31 31 . . Highest-Rated Ally 31 | . . 31 31 . . Total Orders . | . . . . . . Ally Attacks . | . . . . . . Total Damage . | . . . . . . Kills . | . . . . . . Allies Corrupted . | . . . . . . Allies Melted . | . . . . . . Intel | -11 -10 -10 -9 -9 -9 ------- Run | Yrd Mat Min Mat Min Exi Active Infowar (turns) . | . . . . . . Robot Analysis Total . | . . . . . . Derelict Logs Recovered 1 | . . 1 . . . Drone Launches . | . . . . . . Drone Recoveries . | . . . . . . Exploration | -11 -10 -10 -9 -9 -9 ------------- Run | Yrd Mat Min Mat Min Exi Turns Passed 2089 | 79 296 241 807 407 259 Spaces Moved 1072 | 45 150 148 382 188 159 Core 3 | 3 . . . . . Treads 1069 | 42 150 148 382 188 159 Legs . | . . . . . . Wheels . | . . . . . . Hover . | . . . . . . Flight . | . . . . . . Fastest Speed 50 | 50 160 160 160 160 160 Average Speed 159 | 152 160 160 160 160 160 Slowest Speed 160 | 160 160 160 160 160 160 Overloaded Moves . | . . . . . . Propulsion Burnouts . | . . . . . . Robots Hopped . | . . . . . . Potential Cave-ins . | . . . . . . Cave-ins Triggered . | . . . . . . Exploration Rate (%) 35 | 4 35 46 34 44 49 Regions Visited 5 Branch Regions 3 Pre-discovered Areas 1 | . . . . . 1 Known Exits Taken 1 | . . . 1 . . Unknown Exits Taken 4 | 1 1 1 . 1 . Scrap Searched 2 | . . . . 2 . Spaces Dug 2 | . . . 2 . . Terrain Destroyed 112 | . . . 45 67 . Melee 2 | . . . 2 . . Projectile . | . . . . . . AOE 110 | . . . 43 67 . Terrain Rammed . | . . . . . . Walls Destroyed . | . . . . . . Machines Disabled . | . . . . . . Actions | -11 -10 -10 -9 -9 -9 --------- Run | Yrd Mat Min Mat Min Exi Total 1271 | 53 183 152 484 234 165 Wait 46 | . 18 3 20 5 . Move 1067 | 44 149 147 381 187 159 Hop . | . . . . . . Pick Up 22 | 3 2 1 13 1 2 Fast Attach 12 | 5 1 . 3 3 . Attach 5 | 1 . . 1 2 1 Detach . | . . . . . . Swap 10 | . . 1 7 2 . Drop 9 | . . . 5 1 3 Fire 94 | . 12 . 49 33 . Melee 5 | . . . 5 . . Ram . | . . . . . . Kick . | . . . . . . Crush 1 | . 1 . . . . Escape Stasis . | . . . . . . Rewire . | . . . . . . Trap . | . . . . . . Miscellaneous . | . . . . . . Route ------- -11/Scrapyard -10/Materials -10/Mines -9/Materials (discovered 2 exits: [*Mat] / *Min) -9/Mines (discovered 2 exits: [*Mat] / *Exi) -9/Exiles History --------- Turn | Location | Event 3 | -11/Scrapyard | Discovered new exit (range 16) 80 | -11/Scrapyard | Entered Materials 318 | -10/Materials | Build established: Mutant 353 | -10/Materials | Discovered new exit (range 8) 376 | -10/Materials | Entered Mines 436 | -10/Mines | Learned Materials terminal intel 451 | -10/Mines | Received a Mining Laser from a helpful Derelict 570 | -10/Mines | Received a Rocket Launcher from a helpful Derelict 609 | -10/Mines | Discovered new exit (range 5) 617 | -10/Mines | Entered Materials 617 | -9/Materials | Accompanied by 1 ally 617 | -9/Materials | Evolved 2 slots: Propulsion x2 618 | -9/Materials | Loaded intel: 12 terminal locations 931 | -9/Materials | Discovered new exit (range 9) 1042 | -9/Materials | Identified exit to Mines 1424 | -9/Materials | Entered Mines 1430 | -9/Mines | Met a Derelict bent on vengeance 1544 | -9/Mines | Discovered new exit (range 11) 1672 | -9/Mines | Lost 3 parts (2n1u) 1819 | -9/Mines | Deemed a non-threat by the Exiles lab entrance 1819 | -9/Mines | Discovered new exit (range 5) 1831 | -9/Mines | Entered Exiles 1871 | -9/Exiles | Met 8R-AWN 1897 | -9/Exiles | Met EX-HEX 1944 | -9/Exiles | Build established: Scavenger-Mutant 1961 | -9/Exiles | Met EX-DEC 1969 | -9/Exiles | Learned location of Zion (-6) 2001 | -9/Exiles | Met EX-BIN 2028 | -9/Exiles | Aligned with FarCom system 2030 | -9/Exiles | Given EX-Vault access code 2067 | -9/Exiles | Opened EX-Vault 2078 | -9/Exiles | Found Chronowheel 2088 | -9/Exiles | Found AWS/Autocannon 2090 | -9/Exiles | Self-destructed Last Messages --------------- Supersonic Drone Bay Army-in-a-Box PSU Rigger Chronowheel AWS/Thermal Latent Energy Streamer Gui. Plasma Cannon Firepult YOLO Cannon AWS/Gauss XL Autogun Array AWS/Autocannon Field Lobotomy Kit Longsword +1 Deploy-a-Sentry 02078_ Acquired Chronowheel. 02084_ Dropped Aluminum Leg. 02087_ Dropped Med. Battery. 02087_ Dropped Lrg. Matter Pod. 02088_ Acquired AWS/Autocannon. Map ----- +----------------------------------------------------+ | | | | | | | | | | | | | | | | | | | | | | | | | | | | | | | | | | | | | | | | | | | ?????????????????????????###?????????????????????? | | ??????????????????????####X####??????????????????? | | ??????????????????????# #??????????????????? | | ??????????????????????# != #??????????????????? | | ??????????????????????# @ #??????????????????? | | ??????????????????????##! ##??????????????????? | | ??????????????????????#X #???????????????????? | | ??????????????????????## #???????????????????? | | ???????????????????????# #???????????????????? | | ???????????????????????# #???#?#?????????????? | | ???????????????????????# #??"""""????????????? | | ???????????????????????# ## """????????????? | | ???????????????????????# X""????????????? | | ???????????????????????# ## """????????????? | | ?????????????????####??# #??""""?????????????? | | ?????????????????"""""?# #???#???????????????? | | ?????????????????""" ## #???????????????????? | | ???????????????#""X" #???????????????????? | | ???????????????#" #???????????????????? | | ???????????????#" ## #???????????????????? | | ???????????????#""""""?# #?#########?????????? | | ????????????????#"###??# #?#"""""""#?????????? | | ???????????????????????# #?#"""""""#?????????? | | ???????????????????????# #?#"""""""#?????????? | | ??????????????????????## ###"" """"#?????????? | | ??????????????????????#" """"#?????????? | | ??????????????????????#" """#?????????? | | ??????????????????????#" """#?????????? | | ??????????????????????#" """#?????????? | +----------------------------------------------------+ Best States ------------- Heat Dissipation 28 Energy Generation 10 Energy Capacity 250 Matter Stores 300 Matter Capacity 300 Sight Range 16 Terrain Scan Density 10 Armor Coverage 150 Utility Shielding 33 Evasion (%) 40 Recoil Reduction 4 Item Schematics ----------------- Cargo Storage Unit | -10/Materials | Hacked Robot Schematics ------------------ None Fabricated ------------ Nothing Repaired ---------- Nothing Studied --------- None Alien Tech Used ----------------- None Achievements -------------- None Challenges ------------ None Game ------ Seed CentriumSwarmProtomatter Manual? 0 Play Time 00:10:24 Cumulative 509.4 hours Start 2026.07.28 @ 21:37:39 End 2026.07.28 @ 21:46:57 Sessions 2 Manual Loads 0 Difficulty Rogue Special Mode None Game No. 451 Rogue 451 Adventurer 0 Explorer 0 Win Type - Total 13 Types 7/0/3/1/0/0/0/1/0/1 Lore% 63 Gallery% 70 Achievement% 67 Wizard Run 0 Options --------- Layout 1 ASCII 0 Keyboard 0 Movement Mouse Keybinds 0 Fullscreen 2 Font 24/Cog Map View 25x17 Zoom Use 30% Tactical HUD 1 Map Filters NONE Filters NONE Steam 1 RUN: 3ea2cc5b-ebfe-4e72-b9c4-9ae03267b847